[Event "Late-Titled-Tuesday-Blitz-March-05-2024"]
[Site "Chess.com"]
[Date "2024.03.05"]
[Round "8"]
[White "mightysmasher"]
[Black "DeTimmerman"]
[Result "0-1"]
[WhiteElo "2594"]
[BlackElo "2758"]
[TimeControl "180+1"]
[EndTime "15:26:49 PST"]
[Termination "DeTimmerman won by checkmate"]

1. e4 {[%clk 0:03:00.9]} 1... e5 {[%clk 0:02:59.4]} 2. Nf3 {[%clk 0:03:00.6]}
2... Nc6 {[%clk 0:02:59.7]} 3. d4 {[%clk 0:02:59.3]} 3... exd4 {[%clk
0:02:59.9]} 4. Nxd4 {[%clk 0:03:00.2]} 4... Nf6 {[%clk 0:03:00.3]} 5. Nc3 {[%clk
0:03:00.1]} 5... Bb4 {[%clk 0:03:00.1]} 6. Nxc6 {[%clk 0:03:00.1]} 6... bxc6
{[%clk 0:03:01]} 7. Bd3 {[%clk 0:03:00.4]} 7... d5 {[%clk 0:03:01.2]} 8. exd5
{[%clk 0:03:01]} 8... O-O {[%clk 0:03:01.8]} 9. O-O {[%clk 0:03:01.5]} 9... cxd5
{[%clk 0:03:02.5]} 10. Bg5 {[%clk 0:03:01.6]} 10... c6 {[%clk 0:03:03.2]} 11.
Qf3 {[%clk 0:03:01.8]} 11... Be7 {[%clk 0:03:03.9]} 12. Rfe1 {[%clk 0:03:01]}
12... Re8 {[%clk 0:03:04.5]} 13. h3 {[%clk 0:03:00]} 13... Rb8 {[%clk
0:03:04.9]} 14. b3 {[%clk 0:02:59.5]} 14... h6 {[%clk 0:03:05.6]} 15. Bh4 {[%clk
0:02:56]} 15... Rb4 {[%clk 0:03:06.1]} 16. Bg3 {[%clk 0:02:53.7]} 16... Be6
{[%clk 0:03:06.5]} 17. Ne2 {[%clk 0:02:52.6]} 17... c5 {[%clk 0:03:03]} 18. Nf4
{[%clk 0:02:51.3]} 18... Bd6 {[%clk 0:03:00.6]} 19. Nxe6 {[%clk 0:02:48.2]}
19... fxe6 {[%clk 0:03:01.5]} 20. Rad1 {[%clk 0:02:42.2]} 20... Bxg3 {[%clk
0:03:00.5]} 21. Qxg3 {[%clk 0:02:39.9]} 21... Qb8 {[%clk 0:02:45.8]} 22. Qg6
{[%clk 0:02:29.4]} 22... Kf8 {[%clk 0:02:25.9]} 23. Re3 {[%clk 0:02:15.8]} 23...
e5 {[%clk 0:02:19.2]} 24. Rf3 {[%clk 0:01:55.7]} 24... Rb6 {[%clk 0:02:12.5]}
25. Rg3 {[%clk 0:01:39.3]} 25... Qc7 {[%clk 0:02:09.2]} 26. Re1 {[%clk
0:01:26.1]} 26... e4 {[%clk 0:02:03.2]} 27. Bf1 {[%clk 0:01:15.9]} 27... Qf7
{[%clk 0:01:58.4]} 28. Qxf7+ {[%clk 0:01:02.2]} 28... Kxf7 {[%clk 0:01:59.3]}
29. Rd1 {[%clk 0:01:02.5]} 29... d4 {[%clk 0:01:55.4]} 30. Bc4+ {[%clk
0:01:01.4]} 30... Kf8 {[%clk 0:01:55.9]} 31. c3 {[%clk 0:00:57.2]} 31... d3
{[%clk 0:00:50]} 32. Re3 {[%clk 0:00:53.7]} 32... Rd6 {[%clk 0:00:35.3]} 33. f3
{[%clk 0:00:48.5]} 33... d2 {[%clk 0:00:35.4]} 34. fxe4 {[%clk 0:00:30.8]} 34...
Rxe4 {[%clk 0:00:36.3]} 35. Rf3 {[%clk 0:00:14.8]} 35... Re1+ {[%clk 0:00:33.7]}
36. Rf1 {[%clk 0:00:14.8]} 36... Rxd1 {[%clk 0:00:34.6]} 37. Rxd1 {[%clk
0:00:14.5]} 37... Ne4 {[%clk 0:00:35.5]} 38. Rf1+ {[%clk 0:00:12.2]} 38... Ke8
{[%clk 0:00:30.3]} 39. Bb5+ {[%clk 0:00:09.6]} 39... Ke7 {[%clk 0:00:29.5]} 40.
Be2 {[%clk 0:00:07.7]} 40... Nxc3 {[%clk 0:00:29.5]} 41. Bd1 {[%clk 0:00:08.2]}
41... Re6 {[%clk 0:00:29.1]} 42. Bc2 {[%clk 0:00:05.3]} 42... Re1 {[%clk
0:00:27.1]} 43. Kf2 {[%clk 0:00:05.7]} 43... Rxf1+ {[%clk 0:00:27.5]} 44. Kxf1
{[%clk 0:00:06.6]} 44... d1=R+ {[%clk 0:00:27.3]} 45. Bxd1 {[%clk 0:00:07.2]}
45... Nxd1 {[%clk 0:00:28.2]} 46. Ke2 {[%clk 0:00:07.7]} 46... Nc3+ {[%clk
0:00:28]} 47. Kd3 {[%clk 0:00:08.6]} 47... Nxa2 {[%clk 0:00:27.8]} 48. Kc4
{[%clk 0:00:09.5]} 48... Kd6 {[%clk 0:00:28.2]} 49. g4 {[%clk 0:00:09.3]} 49...
Nb4 {[%clk 0:00:29.1]} 50. h4 {[%clk 0:00:09.7]} 50... a6 {[%clk 0:00:17.9]} 51.
g5 {[%clk 0:00:09.4]} 51... hxg5 {[%clk 0:00:17.9]} 52. hxg5 {[%clk 0:00:07.9]}
52... g6 {[%clk 0:00:18.1]} 53. Kc3 {[%clk 0:00:08.4]} 53... Kd5 {[%clk
0:00:19]} 54. Kb2 {[%clk 0:00:09]} 54... Kd4 {[%clk 0:00:17.4]} 55. Ka3 {[%clk
0:00:09.1]} 55... Nc6 {[%clk 0:00:15.9]} 56. Ka4 {[%clk 0:00:09.1]} 56... Kc3
{[%clk 0:00:15.6]} 57. Ka3 {[%clk 0:00:09.3]} 57... c4 {[%clk 0:00:15.5]} 58.
bxc4 {[%clk 0:00:05.5]} 58... Kxc4 {[%clk 0:00:16.4]} 59. Ka4 {[%clk 0:00:06.1]}
59... Kd5 {[%clk 0:00:16.6]} 60. Ka3 {[%clk 0:00:06.7]} 60... Ke5 {[%clk
0:00:17.4]} 61. Kb3 {[%clk 0:00:07.6]} 61... Kf5 {[%clk 0:00:18.1]} 62. Kc4
{[%clk 0:00:08.5]} 62... Kxg5 {[%clk 0:00:18.3]} 63. Kc5 {[%clk 0:00:09.4]}
63... Kf4 {[%clk 0:00:18.8]} 64. Kxc6 {[%clk 0:00:09.5]} 64... g5 {[%clk
0:00:19.4]} 65. Kb6 {[%clk 0:00:10.1]} 65... g4 {[%clk 0:00:20.3]} 66. Kxa6
{[%clk 0:00:11]} 66... g3 {[%clk 0:00:20.7]} 67. Kb6 {[%clk 0:00:11.9]} 67... g2
{[%clk 0:00:21]} 68. Kc5 {[%clk 0:00:12.8]} 68... g1=Q+ {[%clk 0:00:20.7]} 69.
Kc6 {[%clk 0:00:12.7]} 69... Qd1 {[%clk 0:00:20.7]} 70. Kb7 {[%clk 0:00:11]}
70... Qd6 {[%clk 0:00:20.6]} 71. Ka8 {[%clk 0:00:10.9]} 71... Qb4 {[%clk
0:00:20.6]} 72. Ka7 {[%clk 0:00:10.8]} 72... Ke5 {[%clk 0:00:21.5]} 73. Ka6
{[%clk 0:00:11.7]} 73... Kd6 {[%clk 0:00:22.2]} 74. Ka7 {[%clk 0:00:12.6]} 74...
Kc7 {[%clk 0:00:22.9]} 75. Ka6 {[%clk 0:00:13.1]} 75... Qa4# {[%clk 0:00:15.7]}
0-1

[Event "Late-Titled-Tuesday-Blitz-March-05-2024"]
[Site "Chess.com"]
[Date "2024.03.05"]
[Round "8"]
[White "grzechu96"]
[Black "RantomOpening"]
[Result "1/2-1/2"]
[WhiteElo "2730"]
[BlackElo "2592"]
[TimeControl "180+1"]
[EndTime "15:27:01 PST"]
[Termination "Game drawn - insufficient material"]

1. e4 {[%clk 0:03:00.9]} 1... c5 {[%clk 0:02:34.3]} 2. Nf3 {[%clk 0:03:00]} 2...
e6 {[%clk 0:02:34.5]} 3. g3 {[%clk 0:03:00.3]} 3... Nc6 {[%clk 0:02:34.2]} 4.
Bg2 {[%clk 0:02:59.8]} 4... d5 {[%clk 0:02:33.9]} 5. exd5 {[%clk 0:02:59.1]}
5... exd5 {[%clk 0:02:34.8]} 6. d4 {[%clk 0:02:55]} 6... cxd4 {[%clk 0:02:34.7]}
7. Nxd4 {[%clk 0:02:50.1]} 7... Nf6 {[%clk 0:02:35.6]} 8. O-O {[%clk 0:02:50.3]}
8... Bg4 {[%clk 0:02:32.1]} 9. Nxc6 {[%clk 0:02:07.3]} 9... bxc6 {[%clk
0:02:30.6]} 10. Qd4 {[%clk 0:02:08]} 10... Be7 {[%clk 0:02:25.6]} 11. Bg5 {[%clk
0:02:08.2]} 11... Be6 {[%clk 0:02:23.4]} 12. Nd2 {[%clk 0:02:05.7]} 12... h6
{[%clk 0:02:22.5]} 13. Bf4 {[%clk 0:02:01.8]} 13... O-O {[%clk 0:02:18.8]} 14.
Nb3 {[%clk 0:01:59.9]} 14... Nd7 {[%clk 0:02:16.8]} 15. Qd2 {[%clk 0:01:57.5]}
15... Nf6 {[%clk 0:02:10.9]} 16. Nd4 {[%clk 0:01:54.8]} 16... Bd7 {[%clk
0:02:05.4]} 17. Qd3 {[%clk 0:01:29.1]} 17... Re8 {[%clk 0:01:59.3]} 18. c4
{[%clk 0:01:22.3]} 18... Qb6 {[%clk 0:01:19.9]} 19. b3 {[%clk 0:01:11.7]} 19...
c5 {[%clk 0:01:19.1]} 20. Nf5 {[%clk 0:01:09.5]} 20... dxc4 {[%clk 0:01:16.6]}
21. Nxe7+ {[%clk 0:01:08]} 21... Rxe7 {[%clk 0:01:14.6]} 22. Qxc4 {[%clk
0:01:07.6]} 22... Bb5 {[%clk 0:01:11.7]} 23. Qc2 {[%clk 0:00:56.4]} 23... Rd8
{[%clk 0:01:06]} 24. Rfe1 {[%clk 0:00:52.7]} 24... Rxe1+ {[%clk 0:01:02.8]} 25.
Rxe1 {[%clk 0:00:53.6]} 25... Nd5 {[%clk 0:01:00.2]} 26. Qf5 {[%clk 0:00:21.9]}
26... Nxf4 {[%clk 0:00:54.4]} 27. Qxf4 {[%clk 0:00:22.8]} 27... Qd6 {[%clk
0:00:42.1]} 28. Qxd6 {[%clk 0:00:12.7]} 28... Rxd6 {[%clk 0:00:43]} 29. Rc1
{[%clk 0:00:12.8]} 29... Rd2 {[%clk 0:00:40.6]} 30. h4 {[%clk 0:00:11.4]} 30...
Rxa2 {[%clk 0:00:38]} 31. Rxc5 {[%clk 0:00:12.1]} 31... a6 {[%clk 0:00:33.2]}
32. Bd5 {[%clk 0:00:11.2]} 32... Rd2 {[%clk 0:00:28.1]} 33. h5 {[%clk
0:00:07.2]} 33... Rd1+ {[%clk 0:00:25.1]} 34. Kh2 {[%clk 0:00:07.2]} 34... Bd7
{[%clk 0:00:24.7]} 35. Bc4 {[%clk 0:00:03.5]} 35... Bg4 {[%clk 0:00:16.9]} 36.
Rc7 {[%clk 0:00:02.5]} 36... Bf3 {[%clk 0:00:15.4]} 37. g4 {[%clk 0:00:01.9]}
37... Bd5 {[%clk 0:00:12.4]} 38. Rd7 {[%clk 0:00:01.4]} 38... Rh1+ {[%clk
0:00:12.5]} 39. Kg3 {[%clk 0:00:01.8]} 39... Bxc4 {[%clk 0:00:13.2]} 40. bxc4
{[%clk 0:00:02.7]} 40... Rc1 {[%clk 0:00:12.3]} 41. Rc7 {[%clk 0:00:02.9]} 41...
Rc3+ {[%clk 0:00:11.9]} 42. Kf4 {[%clk 0:00:03.2]} 42... a5 {[%clk 0:00:12.8]}
43. Ke4 {[%clk 0:00:03.4]} 43... a4 {[%clk 0:00:12.6]} 44. Kd4 {[%clk 0:00:04]}
44... Rc2 {[%clk 0:00:12.9]} 45. Ra7 {[%clk 0:00:04.2]} 45... Ra2 {[%clk
0:00:13.2]} 46. c5 {[%clk 0:00:04.4]} 46... Ra1 {[%clk 0:00:13.6]} 47. c6 {[%clk
0:00:04.4]} 47... a3 {[%clk 0:00:13.4]} 48. c7 {[%clk 0:00:01.8]} 48... Rd1+
{[%clk 0:00:13.5]} 49. Ke5 {[%clk 0:00:02.1]} 49... Rc1 {[%clk 0:00:13.4]} 50.
Kd5 {[%clk 0:00:02.5]} 50... a2 {[%clk 0:00:13.3]} 51. Kd6 {[%clk 0:00:02.7]}
51... Rd1+ {[%clk 0:00:11.9]} 52. Ke7 {[%clk 0:00:03.1]} 52... Rc1 {[%clk
0:00:12]} 53. Ra8+ {[%clk 0:00:02.3]} 53... Kh7 {[%clk 0:00:11.9]} 54. Kd7
{[%clk 0:00:02.9]} 54... Rd1+ {[%clk 0:00:11.7]} 55. Kc6 {[%clk 0:00:02.5]}
55... a1=Q {[%clk 0:00:11]} 56. Rxa1 {[%clk 0:00:02.5]} 56... Rxa1 {[%clk
0:00:11.9]} 57. c8=Q {[%clk 0:00:02.9]} 57... Rc1+ {[%clk 0:00:12.1]} 58. Kd7
{[%clk 0:00:03.7]} 58... Rxc8 {[%clk 0:00:12.5]} 59. Kxc8 {[%clk 0:00:04.6]}
59... g6 {[%clk 0:00:13]} 60. Kd7 {[%clk 0:00:05]} 60... f5 {[%clk 0:00:12.8]}
61. gxf5 {[%clk 0:00:02.8]} 61... gxh5 {[%clk 0:00:12.8]} 62. Ke7 {[%clk
0:00:02.3]} 62... h4 {[%clk 0:00:13.2]} 63. f6 {[%clk 0:00:03]} 63... h3 {[%clk
0:00:14.1]} 64. f7 {[%clk 0:00:03.6]} 64... h2 {[%clk 0:00:15]} 65. f8=Q {[%clk
0:00:04]} 65... h1=Q {[%clk 0:00:15.8]} 66. Qf7+ {[%clk 0:00:04.4]} 66... Kh8
{[%clk 0:00:16]} 67. Qf6+ {[%clk 0:00:04.3]} 67... Kh7 {[%clk 0:00:15.8]} 68.
Kf7 {[%clk 0:00:03.7]} 68... Qd5+ {[%clk 0:00:15.4]} 69. Qe6 {[%clk 0:00:03.5]}
69... Qf3+ {[%clk 0:00:14.9]} 70. Qf6 {[%clk 0:00:03.2]} 70... Qd5+ {[%clk
0:00:15]} 71. Kf8 {[%clk 0:00:03.2]} 71... Qa8+ {[%clk 0:00:14.9]} 72. Ke7
{[%clk 0:00:03.2]} 72... Qg8 {[%clk 0:00:15.3]} 73. Qf7+ {[%clk 0:00:02.6]}
73... Qg7 {[%clk 0:00:14.8]} 74. f4 {[%clk 0:00:02.5]} 74... Qxf7+ {[%clk
0:00:14.4]} 75. Kxf7 {[%clk 0:00:02.6]} 75... h5 {[%clk 0:00:15.3]} 76. f5
{[%clk 0:00:03.3]} 76... h4 {[%clk 0:00:16.2]} 77. f6 {[%clk 0:00:04]} 77... h3
{[%clk 0:00:17.1]} 78. Ke7 {[%clk 0:00:04.7]} 78... h2 {[%clk 0:00:18]} 79. f7
{[%clk 0:00:05.4]} 79... h1=Q {[%clk 0:00:18.9]} 80. f8=Q {[%clk 0:00:06.1]}
80... Qe4+ {[%clk 0:00:18.7]} 81. Kf6 {[%clk 0:00:05]} 81... Qf4+ {[%clk
0:00:18.5]} 82. Ke7 {[%clk 0:00:05.5]} 82... Qe4+ {[%clk 0:00:19.2]} 83. Kf7
{[%clk 0:00:05.4]} 83... Qd5+ {[%clk 0:00:19.3]} 84. Ke7 {[%clk 0:00:05.8]}
84... Qc5+ {[%clk 0:00:19.4]} 85. Kf7 {[%clk 0:00:06.3]} 85... Qxf8+ {[%clk
0:00:19.5]} 86. Kxf8 {[%clk 0:00:07.2]} 1/2-1/2

[Event "Late-Titled-Tuesday-Blitz-March-05-2024"]
[Site "Chess.com"]
[Date "2024.03.05"]
[Round "8"]
[White "guillembaches"]
[Black "AldokhinIvan"]
[Result "0-1"]
[WhiteElo "2538"]
[BlackElo "2685"]
[TimeControl "180+1"]
[EndTime "15:27:20 PST"]
[Termination "AldokhinIvan won on time"]

1. Nf3 {[%clk 0:03:00.9]} 1... Nf6 {[%clk 0:02:54.8]} 2. d4 {[%clk 0:03:00.9]}
2... g6 {[%clk 0:02:55.3]} 3. Bg5 {[%clk 0:03:00.5]} 3... Bg7 {[%clk 0:02:55.3]}
4. Nbd2 {[%clk 0:03:00.8]} 4... O-O {[%clk 0:02:54.8]} 5. e3 {[%clk 0:03:00.9]}
5... d5 {[%clk 0:02:54.5]} 6. Be2 {[%clk 0:03:01.1]} 6... c5 {[%clk 0:02:51.8]}
7. c3 {[%clk 0:03:01.4]} 7... Nc6 {[%clk 0:02:52.2]} 8. O-O {[%clk 0:03:01.4]}
8... Qb6 {[%clk 0:02:46.9]} 9. Qb3 {[%clk 0:03:00.3]} 9... c4 {[%clk 0:02:40.8]}
10. Qa3 {[%clk 0:03:00.1]} 10... Bf5 {[%clk 0:02:31.3]} 11. b3 {[%clk
0:02:58.8]} 11... cxb3 {[%clk 0:02:25.9]} 12. axb3 {[%clk 0:02:59]} 12... Rfe8
{[%clk 0:02:20.8]} 13. b4 {[%clk 0:02:47.5]} 13... Nd8 {[%clk 0:01:16.4]} 14.
Qa5 {[%clk 0:02:34.6]} 14... Qc6 {[%clk 0:00:52.1]} 15. Qc5 {[%clk 0:02:28]}
15... Qxc5 {[%clk 0:00:41.1]} 16. bxc5 {[%clk 0:02:27.9]} 16... Nd7 {[%clk
0:00:37.1]} 17. Bb5 {[%clk 0:02:02.8]} 17... f6 {[%clk 0:00:36.3]} 18. Bh4
{[%clk 0:02:01.3]} 18... Nc6 {[%clk 0:00:31.6]} 19. Ra4 {[%clk 0:01:54.1]} 19...
a6 {[%clk 0:00:27.9]} 20. Rfa1 {[%clk 0:01:43.4]} 20... Rac8 {[%clk 0:00:27.7]}
21. Bf1 {[%clk 0:01:38.3]} 21... e5 {[%clk 0:00:23.8]} 22. R4a2 {[%clk
0:01:33.1]} 22... h5 {[%clk 0:00:23.6]} 23. h3 {[%clk 0:01:29.1]} 23... g5
{[%clk 0:00:23.1]} 24. Bg3 {[%clk 0:01:28.8]} 24... h4 {[%clk 0:00:23.6]} 25.
Bh2 {[%clk 0:01:29.1]} 25... e4 {[%clk 0:00:21.1]} 26. Ne1 {[%clk 0:01:26.6]}
26... Ndb8 {[%clk 0:00:19.8]} 27. Rb2 {[%clk 0:01:23.7]} 27... Re7 {[%clk
0:00:15.8]} 28. Rab1 {[%clk 0:01:22.3]} 28... Na5 {[%clk 0:00:15.9]} 29. Ra1
{[%clk 0:01:13.6]} 29... Nac6 {[%clk 0:00:14.4]} 30. Nc2 {[%clk 0:01:13.7]}
30... Rd8 {[%clk 0:00:08.2]} 31. Nb4 {[%clk 0:01:10.4]} 31... Rdd7 {[%clk
0:00:07.3]} 32. Rab1 {[%clk 0:01:08.2]} 32... Na5 {[%clk 0:00:06.9]} 33. Ra1
{[%clk 0:01:07.2]} 33... Nac6 {[%clk 0:00:06.7]} 34. Nb3 {[%clk 0:01:03.3]}
34... Nxb4 {[%clk 0:00:06.7]} 35. cxb4 {[%clk 0:01:03.3]} 35... Nc6 {[%clk
0:00:07.6]} 36. b5 {[%clk 0:00:59.6]} 36... axb5 {[%clk 0:00:06.5]} 37. Bxb5
{[%clk 0:01:00.1]} 37... Be6 {[%clk 0:00:06.4]} 38. Na5 {[%clk 0:00:58.2]} 38...
Nxa5 {[%clk 0:00:01.2]} 39. Bxd7 {[%clk 0:00:57.8]} 39... Bxd7 {[%clk
0:00:01.6]} 40. Rxa5 {[%clk 0:00:56.5]} 40... Bc6 {[%clk 0:00:02.5]} 41. Rba2
{[%clk 0:00:51.4]} 41... Kf7 {[%clk 0:00:03]} 42. Ra8 {[%clk 0:00:50.7]} 42...
f5 {[%clk 0:00:03.6]} 43. Bd6 {[%clk 0:00:48.8]} 43... Rd7 {[%clk 0:00:03.3]}
44. Rc8 {[%clk 0:00:45.3]} 44... f4 {[%clk 0:00:03.6]} 45. Raa8 {[%clk
0:00:43.6]} 45... f3 {[%clk 0:00:02.7]} 46. Bf8 {[%clk 0:00:37.1]} 46... Bf6
{[%clk 0:00:02.5]} 47. Bd6 {[%clk 0:00:35.5]} 47... Kg6 {[%clk 0:00:02.8]} 48.
Rg8+ {[%clk 0:00:33.9]} 48... Kf7 {[%clk 0:00:02]} 49. Raf8+ {[%clk 0:00:33.4]}
49... Ke6 {[%clk 0:00:01.7]} 50. Rb8 {[%clk 0:00:20.5]} 50... Kf7 {[%clk
0:00:01.9]} 51. Rgf8+ {[%clk 0:00:20.3]} 51... Kg6 {[%clk 0:00:02.3]} 52. Rg8+
{[%clk 0:00:19.5]} 52... Kf7 {[%clk 0:00:02.7]} 53. Rgf8+ {[%clk 0:00:18.6]}
53... Kg6 {[%clk 0:00:02.9]} 54. gxf3 {[%clk 0:00:18.7]} 54... exf3 {[%clk
0:00:02.9]} 55. Rfc8 {[%clk 0:00:18.4]} 55... Kf7 {[%clk 0:00:02.9]} 56. Rc7
{[%clk 0:00:18.6]} 56... Rxc7 {[%clk 0:00:03.2]} 57. Bxc7 {[%clk 0:00:18.9]}
57... Ke6 {[%clk 0:00:03.6]} 58. Bh2 {[%clk 0:00:18.2]} 58... Kf5 {[%clk
0:00:03.7]} 59. Kf1 {[%clk 0:00:18.1]} 59... Bb5+ {[%clk 0:00:03.2]} 60. Ke1
{[%clk 0:00:16.6]} 60... Bc6 {[%clk 0:00:03.5]} 61. Kd2 {[%clk 0:00:16.8]} 61...
g4 {[%clk 0:00:03.9]} 62. hxg4+ {[%clk 0:00:16.1]} 62... Kxg4 {[%clk 0:00:04.6]}
63. Rf8 {[%clk 0:00:16]} 63... Be7 {[%clk 0:00:03.5]} 64. Rf7 {[%clk 0:00:15.3]}
64... Bd8 {[%clk 0:00:04]} 65. Bf4 {[%clk 0:00:14]} 65... Kh3 {[%clk 0:00:03.4]}
66. Rf8 {[%clk 0:00:13.8]} 66... Ba5+ {[%clk 0:00:03.7]} 67. Kd1 {[%clk
0:00:12.8]} 67... Kg2 {[%clk 0:00:04.4]} 68. Rh8 {[%clk 0:00:11]} 68... h3
{[%clk 0:00:04.8]} 69. Bg3 {[%clk 0:00:11.4]} 69... Bb5 {[%clk 0:00:04.9]} 70.
Rg8 {[%clk 0:00:10.7]} 70... Be2+ {[%clk 0:00:04.6]} 71. Kc1 {[%clk 0:00:10.4]}
71... Be1 {[%clk 0:00:04.8]} 72. Rg7 {[%clk 0:00:08.6]} 72... Bxf2 {[%clk
0:00:04.1]} 73. Bxf2+ {[%clk 0:00:08.4]} 73... Kxf2 {[%clk 0:00:04.4]} 74. Rxb7
{[%clk 0:00:08.8]} 74... h2 {[%clk 0:00:04.9]} 75. Rh7 {[%clk 0:00:08]} 75...
Kg2 {[%clk 0:00:05.3]} 76. c6 {[%clk 0:00:08.5]} 76... h1=Q+ {[%clk 0:00:05.3]}
77. Rxh1 {[%clk 0:00:07.9]} 77... Kxh1 {[%clk 0:00:06.2]} 78. c7 {[%clk
0:00:08.4]} 78... Ba6 {[%clk 0:00:06.8]} 79. e4 {[%clk 0:00:06.2]} 79... f2
{[%clk 0:00:07]} 0-1

[Event "Late-Titled-Tuesday-Blitz-March-05-2024"]
[Site "Chess.com"]
[Date "2024.03.05"]
[Round "8"]
[White "Harry_Rakkel"]
[Black "Arystanner"]
[Result "1-0"]
[WhiteElo "2714"]
[BlackElo "2860"]
[TimeControl "180+1"]
[EndTime "15:27:28 PST"]
[Termination "Harry_Rakkel won on time"]

1. e4 {[%clk 0:03:00.9]} 1... c5 {[%clk 0:02:54.5]} 2. Nf3 {[%clk 0:03:00.4]}
2... e6 {[%clk 0:02:55.2]} 3. d4 {[%clk 0:03:00.1]} 3... cxd4 {[%clk 0:02:56.1]}
4. Nxd4 {[%clk 0:03:00.1]} 4... Nc6 {[%clk 0:02:56.8]} 5. Nc3 {[%clk 0:02:59.8]}
5... Qc7 {[%clk 0:02:57.4]} 6. Be2 {[%clk 0:02:58.6]} 6... a6 {[%clk 0:02:56.3]}
7. O-O {[%clk 0:02:58.1]} 7... b5 {[%clk 0:02:56.1]} 8. Nxc6 {[%clk 0:02:54.5]}
8... Qxc6 {[%clk 0:02:56.6]} 9. Bf3 {[%clk 0:02:52.9]} 9... Bb7 {[%clk
0:02:55.8]} 10. Re1 {[%clk 0:02:41.9]} 10... Ne7 {[%clk 0:02:55.7]} 11. a4
{[%clk 0:02:35.7]} 11... b4 {[%clk 0:02:55.6]} 12. Nd5 {[%clk 0:02:35.3]} 12...
Ng6 {[%clk 0:02:42.3]} 13. a5 {[%clk 0:01:52.3]} 13... Bc5 {[%clk 0:02:41.2]}
14. Be3 {[%clk 0:01:45]} 14... O-O {[%clk 0:02:28.1]} 15. Nb6 {[%clk 0:01:35.1]}
15... Bxe3 {[%clk 0:02:20.5]} 16. Rxe3 {[%clk 0:01:32.2]} 16... Ne5 {[%clk
0:02:17.6]} 17. Nxa8 {[%clk 0:01:25.5]} 17... Rxa8 {[%clk 0:02:13.8]} 18. Be2
{[%clk 0:01:17.7]} 18... f5 {[%clk 0:01:56.5]} 19. Qd4 {[%clk 0:01:10]} 19... f4
{[%clk 0:01:50]} 20. Rb3 {[%clk 0:01:09.1]} 20... Qxc2 {[%clk 0:01:49]} 21. Bd1
{[%clk 0:00:33.6]} 21... Qxe4 {[%clk 0:01:11.8]} 22. Qxe4 {[%clk 0:00:32.5]}
22... Bxe4 {[%clk 0:01:12.7]} 23. Rxb4 {[%clk 0:00:32]} 23... Bc6 {[%clk
0:01:12.2]} 24. Rxf4 {[%clk 0:00:30.5]} 24... Nd3 {[%clk 0:01:12.8]} 25. Rd4
{[%clk 0:00:25.5]} 25... Nxb2 {[%clk 0:01:13.1]} 26. Be2 {[%clk 0:00:23.5]}
26... d5 {[%clk 0:00:41.6]} 27. Rb4 {[%clk 0:00:21.8]} 27... Nc4 {[%clk
0:00:40.7]} 28. Bxc4 {[%clk 0:00:21.4]} 28... dxc4 {[%clk 0:00:41.3]} 29. Rxc4
{[%clk 0:00:21.4]} 29... Bb5 {[%clk 0:00:41.8]} 30. Rc7 {[%clk 0:00:19.7]} 30...
Rd8 {[%clk 0:00:36.4]} 31. f3 {[%clk 0:00:19.2]} 31... h6 {[%clk 0:00:36.3]} 32.
Re1 {[%clk 0:00:18.8]} 32... Rd6 {[%clk 0:00:34.9]} 33. h4 {[%clk 0:00:18.2]}
33... Kh7 {[%clk 0:00:34.4]} 34. Kf2 {[%clk 0:00:18]} 34... Kg6 {[%clk
0:00:32.8]} 35. Kg3 {[%clk 0:00:16.9]} 35... h5 {[%clk 0:00:30.7]} 36. Re5
{[%clk 0:00:17]} 36... Kh6 {[%clk 0:00:25.3]} 37. Ra7 {[%clk 0:00:15.2]} 37...
Kg6 {[%clk 0:00:14.6]} 38. Rg5+ {[%clk 0:00:14.6]} 38... Kf6 {[%clk 0:00:14.3]}
39. Rgxg7 {[%clk 0:00:14.2]} 39... Rd2 {[%clk 0:00:14.6]} 40. Raf7+ {[%clk
0:00:14.5]} 40... Ke5 {[%clk 0:00:15.2]} 41. Rg5+ {[%clk 0:00:14.9]} 41... Kd6
{[%clk 0:00:16]} 42. Rh7 {[%clk 0:00:10.7]} 42... Bf1 {[%clk 0:00:15.9]} 43. Kh2
{[%clk 0:00:10.7]} 43... Be2 {[%clk 0:00:15.3]} 44. Rg3 {[%clk 0:00:10.7]} 44...
Rd5 {[%clk 0:00:14.5]} 45. Rg5 {[%clk 0:00:10.1]} 45... Rd2 {[%clk 0:00:14.9]}
46. Kg1 {[%clk 0:00:09.3]} 46... e5 {[%clk 0:00:12.7]} 47. Rhxh5 {[%clk
0:00:08.4]} 47... Rd5 {[%clk 0:00:07.7]} 48. Rg6+ {[%clk 0:00:07.2]} 48... Kc5
{[%clk 0:00:07.6]} 49. Re6 {[%clk 0:00:07.4]} 49... Kd4 {[%clk 0:00:08]} 50. Kf2
{[%clk 0:00:07.6]} 50... Bd3 {[%clk 0:00:08]} 51. f4 {[%clk 0:00:07.2]} 51...
Rxa5 {[%clk 0:00:05.1]} 52. Rhxe5 {[%clk 0:00:07.1]} 52... Ra2+ {[%clk
0:00:05.8]} 53. Kg3 {[%clk 0:00:06.2]} 53... a5 {[%clk 0:00:05.5]} 54. Rd6+
{[%clk 0:00:06.1]} 54... Kc4 {[%clk 0:00:06.2]} 55. Re3 {[%clk 0:00:04.8]} 55...
Bf1 {[%clk 0:00:06.5]} 56. Kg4 {[%clk 0:00:04]} 56... Rxg2+ {[%clk 0:00:06.4]}
57. Kf5 {[%clk 0:00:03.7]} 57... a4 {[%clk 0:00:06.7]} 58. Re4+ {[%clk
0:00:03.3]} 58... Kc5 {[%clk 0:00:06.5]} 59. Rdd4 {[%clk 0:00:01.7]} 59... a3
{[%clk 0:00:06.3]} 60. Ra4 {[%clk 0:00:01.4]} 60... a2 {[%clk 0:00:05.9]} 61.
Re5+ {[%clk 0:00:01.1]} 61... Kb6 {[%clk 0:00:05.9]} 62. Rea5 {[%clk 0:00:01.3]}
62... Bd3+ {[%clk 0:00:05.1]} 63. Kf6 {[%clk 0:00:01.7]} 63... Bb1 {[%clk
0:00:06]} 64. Ke5 {[%clk 0:00:01.9]} 64... Rh2 {[%clk 0:00:06.3]} 65. Kf6 {[%clk
0:00:01.4]} 65... Rg2 {[%clk 0:00:06.6]} 66. Ra6+ {[%clk 0:00:01.8]} 66... Kb5
{[%clk 0:00:06.8]} 67. R4a5+ {[%clk 0:00:02.2]} 67... Kb4 {[%clk 0:00:07.4]} 68.
f5 {[%clk 0:00:03]} 68... Rh2 {[%clk 0:00:07.1]} 69. Ra4+ {[%clk 0:00:02.9]}
69... Kb5 {[%clk 0:00:07.4]} 70. Kg5 {[%clk 0:00:03.5]} 70... Rg2+ {[%clk
0:00:07.4]} 71. Kh6 {[%clk 0:00:03.5]} 71... Rh2 {[%clk 0:00:05.2]} 72. R6a5+
{[%clk 0:00:03.9]} 72... Kb6 {[%clk 0:00:05.5]} 73. h5 {[%clk 0:00:04.4]} 73...
Rh1 {[%clk 0:00:04.2]} 74. Ra6+ {[%clk 0:00:04.3]} 74... Kb5 {[%clk 0:00:04.6]}
75. R6a5+ {[%clk 0:00:04.8]} 75... Kb6 {[%clk 0:00:05.1]} 76. f6 {[%clk
0:00:05.4]} 76... Rf1 {[%clk 0:00:04.1]} 77. Ra6+ {[%clk 0:00:05.7]} 77... Kb5
{[%clk 0:00:04]} 78. R4a5+ {[%clk 0:00:06.2]} 78... Kb4 {[%clk 0:00:04.7]} 79.
Kg7 {[%clk 0:00:06.6]} 79... Rg1+ {[%clk 0:00:02.7]} 80. Kf8 {[%clk 0:00:06.9]}
80... Kb3 {[%clk 0:00:01.4]} 81. Ra3+ {[%clk 0:00:06.4]} 81... Kb2 {[%clk
0:00:01.7]} 82. f7 {[%clk 0:00:06.8]} 82... Rf1 {[%clk 0:00:02.2]} 83. R3a5
{[%clk 0:00:05.7]} 83... Rg1 {[%clk 0:00:01.8]} 84. Rb6+ {[%clk 0:00:04.7]}
84... Kc2 {[%clk 0:00:01.3]} 85. Rg6 {[%clk 0:00:04.4]} 85... Rf1 {[%clk
0:00:01.2]} 86. Kg7 {[%clk 0:00:04.7]} 86... Kb2 {[%clk 0:00:01.4]} 87. Rb6+
{[%clk 0:00:04.5]} 87... Kc3 {[%clk 0:00:01.3]} 88. f8=Q {[%clk 0:00:04.7]} 1-0